Cogmind - Beta 14 @@@ ROGUE MODE // 2024.08.12 @ 10:57:31 Player: Sandwich Result: Destroyed by as-48461 with Assembled F-torch Performance ------------- Evolutions (0) 0 Regions Visited (2) 400 Robots Destroyed (7) 35 Value Destroyed (96) 96 Prototype IDs (0) 0 Alien Tech Used (0) 0 Bonus (0) 0 TOTAL SCORE: 531 Bonus ------- None Cogmind --------- Core Integrity 0/250 Matter 290/300 Energy 98/100 System Corruption 5% Temperature Cool (21) Movement Walking (120) Location -10/Mines Parts ------- > --- POWER (1) -------- (None) > --- PROPULSION (2) --- Aluminum Leg > --- UTILITY (2) ------ Small Storage Unit Structural Scanner > --- WEAPON (2) ------- (None) > --- INVENTORY (8) ---- Heat Sink Huge Storage Unit Sensor Array Small Laser Peak State ------------ > --- POWER ------------ Light Ion Engine > --- PROPULSION ------- Aluminum Leg Aluminum Leg > --- UTILITY ---------- Small Storage Unit Structural Scanner > --- WEAPON ----------- Assault Rifle Light Assault Rifle > --- INVENTORY -------- Compact Wheel Small Laser [Rating: 7] Favorites ----------- Power Ion Engine Engine Ion Engine Propulsion Aluminum Leg Leg Aluminum Leg Wheel Compact Wheel Utility Small Storage Unit Device Structural Scanner Storage Small Storage Unit Weapon Assault Rifle Ballistic Gun Assault Rifle Build | -11 -10 -10 ------- Run | Yrd Mat Min Slots Evolved . | . . . Power . | . . . Propulsion . | . . . Utility . | . . . Weapon . | . . . Parts Attached 11 | 6 2 3 Power 2 | 1 1 . Engine 2 | 1 1 . Core . | . . . Reactor . | . . . Propulsion 5 | 2 . 3 Treads . | . . . Leg 4 | 2 . 2 Wheel 1 | . . 1 Hover . | . . . Flight . | . . . Utility 2 | 1 1 . Device 1 | . 1 . Storage 1 | 1 . . Processor . | . . . Hackware . | . . . Protection . | . . . Artifact . | . . . Weapon 2 | 2 . . Energy Gun . | . . . Energy Cannon . | . . . Ballistic Gun 2 | 2 . . Ballistic Cannon . | . . . Launcher . | . . . Special Weapon . | . . . Impact Weapon . | . . . Slashing Weapon . | . . . Piercing Weapon . | . . . Special Melee Weapon . | . . . Unidentified Prototypes . | . . . Parts Lost 7 | . . 7 Power 1 | . . 1 Propulsion 4 | . . 4 Utility . | . . . Weapon 2 | . . 2 Highest Loss Streak 7 | . . 7 To Critical Strikes . | . . . Average Slot Usage (%) 92 | . 98 79 Engine 10 | . 14 3 Leg 25 | . 28 21 Wheel 1 | . . 5 Device 12 | . 12 14 Storage 14 | . 14 14 Ballistic Gun 25 | . 28 21 Peak Build Rating 7 | 6 7 7 Average Rating 6 | 4 6 5 On Entrance 4 | . 6 7 Naked Turns . | . . . Heaviest Build 14 | 11 14 14 Greatest Support 20 | 20 20 20 Greatest Overweight (x) 1 | . . 1 Average Overweight (x) . | . . . Largest Inventory Capacity 8 | 8 8 8 Average Capacity 7 | 6 8 8 Most Carried 7 | 2 7 7 Average Carried 3 | . 2 5 Final Capacity 8 | 8 8 8 Final Carried 7 | 2 7 4 Class Distribution -------------------- 100% | Mutant Dominant Class ---------------- Mutant | -10/Materials Mutant | -10/Mines Resources | -11 -10 -10 ----------- Run | Yrd Mat Min Matter Collected 336 | 208 128 . Remotely . | . . . Salvage Created 175 | . 175 . Parts 12 | . 12 . Haulers Intercepted . | . . . Recyclers Shooed . | . . . Parts Field Recycled . | . . . Retrieved Matter . | . . . Parts Self-Destructed . | . . . Prevented . | . . . Kills | -11 -10 -10 ------- Run | Yrd Mat Min Combat Hostiles Destroyed 5 | . 5 . Guns 5 | . 5 . Classes Destroyed 4 | . 4 . Recycler 1 | . 1 . Watcher 1 | . 1 . Swarmer 4 | . 4 . Grunt 1 | . 1 . Best Kill Streak 4 | . 4 . Combat Bots Only 3 | . 3 . Max Kills in Single Turn 1 | . 1 . Gunslinging . | . . . Exploded . | . . . Melee . | . . . Uniques/NPCs Destroyed . | . . . Combat | -11 -10 -10 -------- Run | Yrd Mat Min Hostile Shots Fired 96 | . 17 79 Missed 34 | . 2 32 Damage Taken 902 | . 132 770 Core 256 | . 10 246 Absorbed by Shields . | . . . Core Remaining (%) 100 | 100 . . Volleys Fired 14 | . 14 . Largest 2 | . 2 . Hottest 40 | . 40 . Shots Fired 28 | . 28 . Gun 28 | . 28 . Cannon . | . . . Launcher . | . . . Special . | . . . Kinetic 28 | . 28 . Thermal . | . . . Explosive . | . . . Electromagnetic . | . . . Robot Hit Streak 4 | . 4 . Robot Miss Streak 2 | . 2 . Penetration Max . | . . . Secondary Targets . | . . . Shots Hit Robots 15 | . 15 . Core Hits 8 | . 8 . Critical Kills . | . . . Critical Parts Destroyed . | . . . Critical Strikes . | . . . Melee Attacks . | . . . Impact . | . . . Slashing . | . . . Piercing . | . . . Sneak Attacks . | . . . Combat Hostiles . | . . . Follow-up Attacks . | . . . Damage Inflicted 170 | . 170 . Guns 170 | . 170 . Cannons . | . . . Explosions . | . . . Melee . | . . . Ramming . | . . . Kinetic 170 | . 170 . Thermal . | . . . Explosive . | . . . Electromagnetic . | . . . Impact . | . . . Slashing . | . . . Piercing . | . . . Highest Corruption 5 | . . 5 Average Corruption 5 | . . 5 Corruption Purged . | . . . Corruption Blocked . | . . . Overload Shots . | . . . Overflow Damage . | . . . Projectiles . | . . . Explosions . | . . . Melee . | . . . Knockbacks . | . . . Impact . | . . . Kinetic . | . . . Secondary . | . . . Self-Inflicted Damage . | . . . Shots . | . . . Rammed . | . . . Targets Rammed . | . . . Kicked . | . . . Crushed . | . . . Highest Temperature 23 | . 12 23 Average Temperature 8 | . 7 9 Received Heat Transfer 467 | . 27 440 Siege Activations . | . . . Robots Corrupted . | . . . Combat Hostiles . | . . . Parts Fried . | . . . Impact Corruptions . | . . . Robots Melted . | . . . Combat Hostiles . | . . . Parts Melted . | . . . Heat Transferred . | . . . Parts Sabotaged . | . . . Parts Stolen . | . . . Parts Stripped . | . . . Power Chain Reactions . | . . . Alert | -11 -10 -10 ------- Run | Yrd Mat Min Peak Influence 288 | . 288 112 Initial 112 | . . 112 Average 84 | . 111 80 Maximum Alert Level 1 | . 1 . Low Security (%) 85 | 100 74 100 Level 1 14 | . 25 . Level 2 . | . . . Level 3 . | . . . Level 4 . | . . . Level 5 . | . . . High Security . | . . . Max Security . | . . . Squads Dispatched . | . . . Investigation . | . . . Extermination . | . . . Reinforcement . | . . . Assault . | . . . Garrison . | . . . Intercept . | . . . Searches Triggered . | . . . Construction Impeded . | . . . Haulers Reinforced . | . . . Active Scanning Responses . | . . . Cargo Convoy Interrupts . | . . . Stealth | -11 -10 -10 --------- Run | Yrd Mat Min Distress Signals 2 | . 2 . Communications Jammed . | . . . Distress Signals . | . . . Times Spotted 34 | . 13 21 Peak Tracking Total 20 | . 5 20 Tactical Retreats 5 | . 3 2 Traps | -11 -10 -10 ------- Run | Yrd Mat Min Traps Triggered . | . . . Indirectly . | . . . Trap Hack Attempts . | . . . Triggered . | . . . Disarmed . | . . . Reprogrammed . | . . . Reused . | . . . Traps Extracted . | . . . Installed . | . . . Triggered . | . . . Machines | -11 -10 -10 ---------- Run | Yrd Mat Min Machines Disabled . | . . . Max in Single Turn . | . . . Machines Repaired . | . . . Machines Dismantled . | . . . Machines Sabotaged . | . . . Overloaded Fab Kills . | . . . Hacking | -11 -10 -10 --------- Run | Yrd Mat Min Machines Accessed 2 | . 2 . Terminals 2 | . 2 . Fabricators . | . . . Repair Stations . | . . . Recycling Units . | . . . Scanalyzers . | . . . Garrison Access . | . . . Total Hacks 6 | . 6 . Successful 3 | . 3 . Failed 3 | . 3 . Catastrophic 1 | . 1 . Database Lockouts . | . . . Manual 5 | . 5 . Terminals 6 | . 6 . Fabricators . | . . . Repair Stations . | . . . Recycling Units . | . . . Scanalyzers . | . . . Garrison Access . | . . . Terminal Hacks 1 | . 1 . Level Access Points 1 | . 1 . Fabricator Hacks . | . . . Repair Station Hacks . | . . . Recycling Unit Hacks . | . . . Scanalyzer . | . . . Garrison Access Hacks . | . . . Unauthorized Hacks 2 | . 2 . Terminals 2 | . 2 . Botnet 2 | . 2 . Fabricators . | . . . Repair Stations . | . . . Recycling Units . | . . . Scanalyzers . | . . . Garrison Access . | . . . Data Cores Recovered . | . . . Used . | . . . Hacking Detections 2 | . 2 . Full Trace Events . | . . . Feedback Events . | . . . Feedback Blocked . | . . . Robot Schematics Acquired . | . . . Robots Built . | . . . Authchips . | . . . Time . | . . . Total Robot Build Rating . | . . . Part Schematics Acquired . | . . . Parts Built . | . . . Authchips . | . . . Time . | . . . Total Part Build Rating . | . . . Parts Repaired . | . . . Time . | . . . Parts Recycled . | . . . Recycled Matter . | . . . Retrieved Matter . | . . . Retrieved Components . | . . . Parts Scanalyzed . | . . . Part Schematics Acquired . | . . . Parts Damaged . | . . . Bothacking | -11 -10 -10 ------------ Run | Yrd Mat Min Used RIF Installer . | . . . Robots Hacked . | . . . Non-combat . | . . . Combat . | . . . Robot Hacks Applied . | . . . Relay Couplers Released . | . . . Fabnet Peak Effective % . | . . . Robots Rewired . | . . . Allies Hacked . | . . . Hacks Repelled . | . . . Allies | -11 -10 -10 -------- Run | Yrd Mat Min Total Allies . | . . . Largest Group . | . . . Highest-Rated Group . | . . . Highest-Rated Ally . | . . . Total Orders . | . . . Ally Attacks . | . . . Total Damage . | . . . Kills . | . . . Allies Corrupted . | . . . Allies Melted . | . . . Intel | -11 -10 -10 ------- Run | Yrd Mat Min Robot Analysis Total . | . . . Derelict Logs Recovered . | . . . Drone Launches . | . . . Drone Recoveries . | . . . Exploration | -11 -10 -10 ------------- Run | Yrd Mat Min Turns Passed 328 | 57 186 85 Spaces Moved 219 | 41 105 73 Core 4 | 4 . . Treads . | . . . Legs 186 | 37 105 44 Wheels 29 | . . 29 Hover . | . . . Flight . | . . . Fastest Speed 50 | 50 120 100 Average Speed 116 | 113 120 113 Slowest Speed 190 | 120 120 190 Overloaded Moves . | . . . Propulsion Burnouts . | . . . Robots Hopped . | . . . Cave-ins Triggered . | . . . Exploration Rate (%) 26 | 4 30 46 Regions Visited 2 Branch Regions 1 Pre-discovered Areas . | . . . Known Exits Taken . | . . . Unknown Exits Taken 2 | 1 1 . Scrap Searched . | . . . Spaces Dug . | . . . Terrain Destroyed . | . . . Melee . | . . . Projectile . | . . . AOE . | . . . Terrain Rammed . | . . . Walls Destroyed . | . . . Machines Disabled . | . . . Actions | -11 -10 -10 --------- Run | Yrd Mat Min Total 263 | 48 139 76 Wait 13 | . 13 . Move 217 | 40 104 73 Hop . | . . . Pick Up 7 | 2 5 . Fast Attach 7 | 6 1 . Attach 3 | . . 3 Detach . | . . . Swap 1 | . 1 . Drop 1 | . 1 . Fire 14 | . 14 . Melee . | . . . Ram . | . . . Kick . | . . . Crush . | . . . Escape Stasis . | . . . Rewire . | . . . Trap . | . . . Miscellaneous . | . . . Route ------- -11/Scrapyard -10/Materials (discovered 4 exits: Mat x3 / [*Min]) -10/Mines (discovered 1 exit: *Mat) History --------- Turn | Location | Event 5 | -11/Scrapyard | Discovered new exit (range 15) 58 | -11/Scrapyard | Entered Materials 177 | -10/Materials | Identified exit to Materials 216 | -10/Materials | Discovered new exit (range 15) 244 | -10/Materials | Entered Mines 245 | -10/Mines | Assembled infested the area 297 | -10/Mines | Core integrity fell below 50% 316 | -10/Mines | Build established: Mutant 320 | -10/Mines | Discovered exit to Materials (range 16) 327 | -10/Mines | Core integrity fell below 20% 329 | -10/Mines | Destroyed by as-48461 with Assembled F-torch Last Messages --------------- 00308_ U-05 Engineer destroyed. 00309_ as-59372 sneak attacks. 00309_ T-07 Excavator system corrupted by crushing effect. 00310_ T-07 Excavator destroyed. 00312_ as-93991 destroyed. 00312_ as-97782 destroyed. 00313_ K-01 Serf collects debris. 00314_ as-39290 sneak attacks. 00314_ U-05 Engineer destroyed. 00314_ Assault Rifle destroyed. 00315_ Aluminum Leg destroyed. 00315_ System corrupted by crushing effect (+5). 00317_ K-01 Serf collects debris. 00320_ EXIT=FOUND: MATERIALS 00321_ K-01 Serf collects debris. 00322_ as-59372 sneak attacks. 00322_ T-07 Excavator system corrupted by crushing effect. 00322_ T-07 Excavator knocked back. 00323_ T-07 Excavator system terminally corrupted. 00324_ K-01 Serf collects debris. Map ----- +----------------------------------------------------+ | | | | | | | | | | | | | | | | | | | | | | | | | | | | | | | | | | | | | | | | | | | | | ????########????#######??????????????????????????? | | ???################################??????????????? | | ???### ####### ##############??###?????????? | | ???## a a @ ###????????? | | ???## % a a a < ##????????? | | ???## ## ## ########## ##????????? | | ???### ?###|!###### ###########??? ###????????? | | ???####??##%!###### ##????????????####????????? | | ?????????##=%##?## ????????????????????????? | | ?????????##*|##?## ??????????????????????? | | ?????????##!%##?## ?????????????????????? | | ?????????## =##?### ##??????????????????? | | ?????????# ##?#### ###??????????????????? | | ????????## % ##?### ######??????????????????? | | ????????## % ###?## #######???????????????????? | | ????##### ###?### #####??????????????????????? | | ???###### ##?#######????????????????????????? | | ???### ## ###??####?????????????????????????? | | ???## ########??????????????????????????? | | ???### ########?????????????????????????? | | ???### ## ###?????????????????????????? | | ????### ###????????????????????????? | | ????#### % """" ########???????????????????? | | ????#### """" ####### ??????????????????? | | ## """" ###???? ##???????????? | | # ###??? ##???????????? | | ## ##??? ##???????????? | | ## ## ####### ##??? ##???????????? | +----------------------------------------------------+ Best States ------------- Heat Dissipation 25 Energy Generation 10 Energy Capacity 250 Matter Stores 300 Matter Capacity 300 Sight Range 16 Terrain Scan Density 10 Evasion (%) 55 Item Schematics ----------------- None Robot Schematics ------------------ None Fabricated ------------ Nothing Alien Tech Used ----------------- None Achievements -------------- None Challenges ------------ None Game ------ Seed StorageSensorMachine Manual? 0 Play Time 00:06:09 Cumulative 224.3 hours Start 2024.08.12 @ 10:52:53 End 2024.08.12 @ 10:57:31 Sessions 1 Manual Loads 0 Difficulty Rogue Special Mode None Game No. 287 Rogue 243 Adventurer 4 Explorer 40 Win Type - Total 10 Types 8/1/0/1/0/0/0/0/0 Lore% 33 Gallery% 70 Achievement% 62 Wizard Run 0 Options --------- Layout 0 ASCII 0 Keyboard 0 Movement Mouse Keybinds 0 Fullscreen 2 Font 24/Smallcaps Map View 76x50 Zoom Use 0% Tactical HUD 1 Map Filters NONE Filters NONE Steam 1 RUN: 33434d10-d45c-4b36-af8f-a474a70d7672